Workbook

Sheet Spreadsheet 01
B2: A | H2: A' | N2: B | T2: C | Z2: brake | AG2: A | AH2: A, | AI2: B | AJ2: C
B3: factory | C3: LEFT | D3: RIGHT | E3: left | F3: right | G3: symet | H3: factory | I3: LEFT | J3: RIGHT | K3: left | L3: right | M3: symet. | N3: factory | O3: LEFT | P3: RIGHT | Q3: left | R3: dir. | S3: symet | T3: factory | U3: LEFT | V3: RIGHT | W3: left. | X3: right | Y3: symet | Z3: factory | AA3: LEFT | AB3: RIGHT | AC3: left. | AD3: right | AE3: symet
A4: 1 | B4: =AG4+$M$24 -> 8140.15 | E4: =C4-B4 -> -8140.15 | F4: =D4-B4 -> -8140.15 | G4: =C4-D4 -> 0 | H4: =AH4+$M$24 -> 8111.65 | K4: =I4-H4 -> -8111.65 | L4: =J4-H4 -> -8111.65 | M4: =I4-J4 -> 0 | N4: =AI4+$M$24 -> 8146.55 | Q4: =O4-N4 -> -8146.55 | R4: =P4-N4 -> -8146.55 | S4: =O4-P4 -> 0 | T4: =AJ4+$M$24 -> 8374.2 | W4: =U4-T4 -> -8374.2 | X4: =V4-T4 -> -8374.2 | Y4: =U4-V4 -> 0 | Z4: 8534.85 | AC4: =AA4-Z4 -> -8534.85 | AD4: =AB4-Z4 -> -8534.85 | AE4: =AA4-AB4 -> 0 | AG4: 8140.15 | AH4: 8111.65 | AI4: 8146.55 | AJ4: 8374.2
A5: 2 | B5: 8008.75 | E5: =C5-B5 -> -8008.75 | F5: =D5-B5 -> -8008.75 | G5: =C5-D5 -> 0 | H5: 7973.25 | K5: =I5-H5 -> -7973.25 | L5: =J5-H5 -> -7973.25 | M5: =I5-J5 -> 0 | N5: 7991.35 | Q5: =O5-N5 -> -7991.35 | R5: =P5-N5 -> -7991.35 | S5: =O5-P5 -> 0 | T5: =AJ5+$M$24 -> 8223 | W5: =U5-T5 -> -8223 | X5: =V5-T5 -> -8223 | Y5: =U5-V5 -> 0 | Z5: 8303.7 | AC5: =AA5-Z5 -> -8303.7 | AD5: =AB5-Z5 -> -8303.7 | AE5: =AA5-AB5 -> 0 | AG5: 8008.75 | AH5: 7973.25 | AI5: 7991.35 | AJ5: 8223
A6: 3 | B6: 7970.15 | E6: -7970.15 | F6: -7970.15 | G6: 0 | H6: 7939 | K6: -7939 | L6: -7939 | M6: 0 | N6: 7930.7 | Q6: -7930.7 | R6: -7930.7 | S6: 0 | T6: =AJ6+$M$24 -> 8160.25 | W6: -8160.25 | X6: -8160.25 | Y6: 0 | Z6: 8186.25 | AC6: -8186.25 | AD6: -8186.25 | AE6: 0 | AG6: 7970.15 | AH6: 7939 | AI6: 7930.7 | AJ6: 8160.25
A7: 4 | B7: 8042.7 | E7: -8042.7 | F7: -8042.7 | G7: 0 | H7: 8009.1 | K7: -8009.1 | L7: -8009.1 | M7: 0 | N7: 7958.4 | Q7: -7958.4 | R7: -7958.4 | S7: 0 | T7: =AJ7+$M$24 -> 8182.95 | W7: -8182.95 | X7: -8182.95 | Y7: 0 | Z7: 8180.65 | AC7: -8180.65 | AD7: -8180.65 | AE7: 0 | AG7: 8042.7 | AH7: 8009.1 | AI7: 7958.4 | AJ7: 8182.95
A8: 5 | B8: 7947.3 | E8: -7947.3 | F8: -7947.3 | G8: 0 | H8: 7920.95 | K8: -7920.95 | L8: -7920.95 | M8: 0 | N8: 7932.9 | Q8: -7932.9 | R8: -7932.9 | S8: 0 | Z8: 8011.4 | AC8: -8011.4 | AD8: -8011.4 | AE8: 0 | AG8: 7947.3 | AH8: 7920.95 | AI8: 7932.9
A9: 6 | B9: 7782.35 | E9: -7782.35 | F9: -7782.35 | G9: 0 | H9: 7753.1 | K9: -7753.1 | L9: -7753.1 | M9: 0 | N9: 7774.95 | Q9: -7774.95 | R9: -7774.95 | S9: 0 | Z9: 7813.3 | AC9: -7813.3 | AD9: -7813.3 | AE9: 0 | AG9: 7782.35 | AH9: 7753.1 | AI9: 7774.95
A10: 7 | B10: 7695.15 | E10: -7695.15 | F10: -7695.15 | G10: 0 | H10: 7666.65 | K10: -7666.65 | L10: -7666.65 | M10: 0 | N10: 7682 | Q10: -7682 | R10: -7682 | S10: 0 | Z10: 7721.5 | AC10: -7721.5 | AD10: -7721.5 | AE10: 0 | AG10: 7695.15 | AH10: 7666.65 | AI10: 7682
A11: 8 | B11: 7711.95 | E11: -7711.95 | F11: -7711.95 | G11: 0 | H11: 7688.25 | K11: -7688.25 | L11: -7688.25 | M11: 0 | N11: 7702.4 | Q11: -7702.4 | R11: -7702.4 | S11: 0 | Z11: 7747.15 | AC11: -7747.15 | AD11: -7747.15 | AE11: 0 | AG11: 7711.95 | AH11: 7688.25 | AI11: 7702.4
A12: 9 | B12: 7446.1 | E12: -7446.1 | F12: -7446.1 | G12: 0 | H12: 7425.95 | K12: -7425.95 | L12: -7425.95 | M12: 0 | N12: 7475.35 | Q12: -7475.35 | R12: -7475.35 | S12: 0 | Z12: 7617.95 | AC12: -7617.95 | AD12: -7617.95 | AE12: 0 | AG12: 7446.1 | AH12: 7425.95 | AI12: 7475.35
A13: 10 | B13: 7393.95 | E13: -7393.95 | F13: -7393.95 | G13: 0 | N13: 7429.85 | Q13: -7429.85 | R13: -7429.85 | S13: 0 | Z13: 7504.4 | AC13: -7504.4 | AD13: -7504.4 | AE13: 0 | AG13: 7393.95 | AI13: 7429.85
A14: 11 | B14: 7310 | E14: -7310 | F14: -7310 | G14: 0 | N14: 7330.7 | Q14: -7330.7 | R14: -7330.7 | S14: 0 | Z14: 7424.25 | AC14: -7424.25 | AD14: -7424.25 | AE14: 0 | AG14: 7310 | AI14: 7330.7
A15: 12 | B15: 7309.9 | E15: -7309.9 | F15: -7309.9 | G15: 0 | N15: 7320.35 | Q15: -7320.35 | R15: -7320.35 | S15: 0 | Z15: 7442.85 | AC15: -7442.85 | AD15: -7442.85 | AE15: 0 | AG15: 7309.9 | AI15: 7320.35
A16: 13 | B16: 7257.35 | E16: -7257.35 | F16: -7257.35 | G16: 0 | N16: 7270.25 | Q16: -7270.25 | R16: -7270.25 | S16: 0 | Z16: 7629.75 | AC16: -7629.75 | AD16: -7629.75 | AE16: 0 | AG16: 7257.35 | AI16: 7270.25
A17: 14 | B17: 7278 | E17: -7278 | F17: -7278 | G17: 0 | N17: 7281.5 | Q17: -7281.5 | R17: -7281.5 | S17: 0 | AG17: 7278 | AI17: 7281.5
A18: 15 | B18: 7163.55 | E18: -7163.55 | F18: -7163.55 | G18: 0 | N18: 7197.3 | Q18: -7197.3 | R18: -7197.3 | S18: 0 | AG18: 7163.55 | AI18: 7197.3
A19: 16 | B19: 7182.65 | E19: -7182.65 | F19: -7182.65 | G19: 0 | N19: 7225.65 | Q19: -7225.65 | R19: -7225.65 | S19: 0 | AG19: 7182.65 | AI19: 7225.65
A20: 17
A21: 18
M23: RISER | S23: TRIM LEFT SIDE | V23: TRIM RIGHT SIDE
M24: 0 | Q24: SECTION | S24: 3 | T24: 2 | U24: 1 | V24: 1 | W24: 2 | X24: 3
Q25: A average | S25: =AVERAGE(E12:E17) -> -7332.55 | T25: =AVERAGE(E8:E11) -> -7784.1875 | U25: =AVERAGE(E4:E7) -> -8040.4375 | V25: =AVERAGE(F4:F7) -> -8040.4375 | W25: =AVERAGE(F8:F11) -> -7784.1875 | X25: =AVERAGE(F12:F17) -> -7332.55
Q26: B average | S26: =AVERAGE(Q12:Q17) -> -7351.333333 | T26: =AVERAGE(Q8:Q11) -> -7773.0625 | U26: =AVERAGE(Q4:Q7) -> -8006.75 | V26: =AVERAGE(R4:R7) -> -8006.75 | W26: =AVERAGE(R8:R11) -> -7773.0625 | X26: =AVERAGE(R12:R17) -> -7351.333333
Q27: FINAL TRIM | S27: =S25-S26 -> 18.78333333 | T27: =T25-T26 -> -11.125 | U27: -33.6875 | V27: -33.6875 | W27: -11.125 | X27: =X25-X26 -> 18.78333333
